bitfinex-derivatives/quotes_ETHF0:USTF0_20241008
["timestamp","ask_amount","ask_price","bid_price","bid_amount"]
[1728396657888,0.41002,2439.8,2439.5,0.3952]
[1728396658095,0.41002,2439.8,2439.6,0.41003]
[1728396658288,3.2078,2439.8,2439.2,3.2078]
[1728396658580,3.94,2440.3,2439.1,0.4219]
[1728396658581,3.2078,2439.5,2439.1,0.4219]
[1728396658980,3.2078,2439.5,2439.4,0.41008]
[1728396659276,3.2078,2439.5,2439.1,0.4219]
[1728396659277,3.2078,2439.5,2439.3,0.41008]
[1728396659688,3.2078,2439.5,2439.1,0.4219]
[1728396659986,3.61786,2439.5,2439.3,0.41009]
[1728396660186,3.2078,2439.5,2439.4,0.41008]
[1728396660876,3.2078,2439.9,2439.1,4.65499]
[1728396661382,3.2078,2439.6,2439.1,0.4219]
[1728396661985,4.23293,2439.6,2439.1,0.4219]
[1728396662284,4.23293,2439.6,2438.4,0.4134]
[1728396662285,3.2078,2439.3,2438.4,3.2078]
[1728396662587,3.2078,2438.7,2438.1,3.2078]
[1728396662785,3.2078,2438.4,2437.8,3.2078]
[1728396662984,3.2078,2438.4,2437.3,1.02606]
[1728396662985,3.2078,2438.1,2437.4,3.2078]
[1728396663185,3.2078,2437.8,2437.0,3.2078]
[1728396663378,3.61821,2437.5,2437.1,0.41046]
[1728396663687,3.2078,2437.5,2436.7,3.2078]
[1728396663879,3.2078,2437.5,2437.0,3.2078]
[1728396664085,3.61815,2437.8,2437.4,0.41041]
[1728396664287,3.2078,2437.5,2436.6,4.59402697]
[1728396664488,3.2078,2436.8,2436.4,0.41057]
[1728396664685,3.2078,2436.8,2436.3,0.41059]
[1728396664882,3.2078,2436.8,2436.2,3.2078]
[1728396665090,4.01711,2437.4,2436.8,0.4105]
[1728396665390,4.44,2437.3,2436.8,0.41051]
[1728396665688,4.44,2437.3,2436.2,3.2078]
[1728396665988,3.2078,2437.4,2436.6,3.2078]
[1728396666189,3.2078,2437.4,2437.1,0.41046]
[1728396666381,3.2078,2437.4,2436.6,3.2078]
[1728396666585,3.2078,2437.1,2436.1,3.2078]
[1728396666790,3.2078,2437.1,2436.8,0.41051]
[1728396666988,3.2078,2437.1,2436.4,3.2078]
[1728396667586,3.2078,2436.8,2436.4,3.2078]
[1728396667885,3.2078,2436.8,2435.7,3.2078]
[1728396668187,3.2078,2436.8,2435.7,0.41069]
[1728396668188,0.41064,2436.1,2435.7,0.41069]
[1728396668387,3.2078,2436.2,2435.5,0.4106]
[1728396668587,4.44,2436.3,2435.5,0.4106]
[1728396668888,3.2078,2435.6,2434.4,3.2078]
[1728396669087,3.2078,2435.2,2435.1,0.4108]
[1728396669290,3.2078,2435.5,2434.7,3.2078]
[1728396669489,3.2078,2435.7,2435.1,3.2078]
[1728396669793,3.2078,2435.7,2435.5,0.41072]
[1728396669995,3.2078,2435.7,2435.1,3.2078]
[1728396670191,3.2078,2435.7,2434.6,3.6099]
[1728396670487,7.6478,2435.7,2434.6,3.6099]
[1728396670693,3.2078,2435.4,2435.1,0.41079]
[1728396670892,3.2078,2435.4,2434.9,3.2078]
[1728396671091,8.0585,2435.7,2435.2,0.41077]
[1728396671291,8.05851,2435.7,2435.2,0.41077]
[1728396671491,3.2078,2435.4,2435.3,0.41075]
[1728396671793,3.2078,2435.4,2435.2,0.41078]
[1728396671990,3.2078,2435.4,2434.6,0.4021]
[1728396672191,3.2078,2435.4,2435.3,0.41077]
[1728396672492,3.2078,2435.4,2434.7,1.02718]
[1728396672884,3.2078,2435.4,2435.3,0.41077]
[1728396673293,3.2078,2435.4,2435.3,4.51717]
[1728396673686,3.2078,2436.0,2435.9,0.41066]
[1728396673890,3.2078,2436.4,2436.1,0.41062]
[1728396674291,7.3126,2436.4,2435.3,3.2078]
[1728396674490,3.2078,2436.4,2436.3,0.4106]
[1728396674789,3.2078,2436.4,2436.1,0.41061]
[1728396674990,3.2078,2436.4,2435.5,3.2078]
[1728396675390,3.2078,2436.4,2436.2,0.41061]
[1728396675794,4.1048,2436.3,2435.6,1.0268]
[1728396675992,3.2078,2435.8,2435.2,3.2078]
[1728396676391,3.2078,2435.8,2435.4,0.41075]
[1728396676597,3.2078,2435.8,2435.5,0.41073]
[1728396676794,3.61849,2435.8,2435.4,0.41075]
[1728396676985,3.2078,2435.8,2435.4,0.41074]
[1728396677191,3.61848,2435.8,2434.8,0.3892]
[1728396677499,3.2078,2435.7,2435.5,0.41073]
[1728396677692,3.2078,2435.7,2435.6,0.41072]
[1728396677887,3.2078,2435.7,2435.1,3.2078]
[1728396678096,4.85066,2436.0,2435.1,3.2078]
[1728396678097,8.05846,2436.0,2435.1,3.2078]
[1728396678295,7.6478,2436.0,2435.1,3.2078]
[1728396678494,3.2078,2436.0,2435.9,0.41066]
[1728396678697,7.6478,2436.3,2435.4,3.2078]
[1728396678896,8.05841,2436.3,2435.9,0.41065]
[1728396679098,7.6478,2436.3,2435.5,0.3993]
[1728396679307,7.6478,2436.3,2435.6,1.0268]
[1728396679496,3.2078,2436.3,2435.8,1.02671]
[1728396679695,7.6478,2436.6,2435.7,3.2078]
[1728396679891,1.43698,2436.5,2435.8,0.41067]
[1728396680095,3.61841,2436.3,2435.9,0.41066]
[1728396680305,3.2078,2436.3,2436.0,0.41064]
[1728396680604,3.2078,2436.3,2435.7,3.2078]
[1728396680899,3.2078,2436.6,2435.8,1.02671]
[1728396681090,3.2078,2436.6,2436.4,0.41057]
[1728396681290,0.41057,2436.5,2436.1,0.41062]
[1728396681490,3.61836,2436.6,2436.2,0.4106]
[1728396681698,3.2078,2436.6,2435.8,1.02671]
[1728396681904,0.41057,2436.5,2436.2,0.4106]
[1728396682104,3.61835,2436.6,2436.3,0.41059]
[1728396682495,3.2078,2436.6,2435.8,1.02671]
[1728396682998,3.2078,2436.6,2436.5,0.41056]
[1728396683303,4.85049,2437.0,2436.2,1.02652]
[1728396683304,7.6478,2437.0,2436.2,1.02652]
[1728396683503,7.6478,2437.3,2436.3,3.2078]
[1728396683802,8.05824,2437.3,2437.0,0.41047]
[1728396684000,0.41045,2437.2,2436.9,0.41049]
[1728396684203,3.2078,2437.0,2436.9,0.41049]
[1728396684592,3.2078,2437.3,2437.2,0.41045]
[1728396684796,3.2078,2437.6,2436.6,3.2078]
[1728396685100,3.2078,2437.6,2437.5,0.4104]
[1728396685295,0.41033,2437.9,2437.6,0.41037]
[1728396685501,0.41034,2437.9,2437.6,0.41037]
[1728396685692,7.6478,2437.7,2436.9,3.2078]
[1728396685902,0.41041,2437.5,2437.2,0.41044]
[1728396686101,0.41041,2437.4,2437.2,0.41044]
[1728396686298,8.67374,2437.7,2437.1,0.41045]
[1728396686500,7.6478,2437.4,2436.5,3.6361]
[1728396686797,3.2078,2437.1,2436.5,3.2078]
[1728396687004,0.4105,2436.9,2436.6,0.41055]
[1728396687194,3.2078,2437.1,2436.9,0.41049]
[1728396687394,3.2078,2437.1,2436.5,3.2078]
[1728396687599,3.2078,2437.1,2437.0,0.41048]
[1728396687897,3.2078,2437.6,2436.6,1.02637]
[1728396688194,3.2078,2437.6,2437.5,0.4104]
[1728396688395,0.4104,2437.5,2436.8,4.23407]
[1728396688794,3.2078,2437.6,2437.4,0.4104]
[1728396688998,0.4104,2437.5,2436.8,4.23407]
[1728396689207,0.4104,2437.5,2436.9,0.4105]
[1728396689394,0.41042,2437.4,2437.1,0.41045]
[1728396689596,0.41041,2437.5,2436.8,4.23407]
[1728396689796,3.2078,2437.6,2436.8,4.23407]
[1728396690000,0.4104,2437.5,2436.8,4.23407]
[1728396690397,0.41041,2437.4,2436.9,0.4105]
[1728396690603,3.2078,2437.6,2437.2,0.41044]
[1728396690800,3.2078,2437.6,2436.8,4.23407]
[1728396691006,0.41042,2437.4,2437.1,0.41045]
[1728396691199,3.61819,2437.6,2437.3,0.41042]
[1728396691399,3.2078,2437.6,2436.8,4.23407]
[1728396691603,3.61819,2437.6,2437.3,0.41042]
[1728396691806,3.2078,2437.6,2437.0,1.02618]
[1728396692006,3.61819,2437.6,2437.3,0.41042]
[1728396692506,3.61819,2437.6,2437.0,1.02618]
[1728396692705,3.2078,2437.6,2437.0,1.02618]
[1728396693106,3.2078,2437.6,2437.5,0.4104]
[1728396693706,3.2078,2437.9,2436.8,3.2078]
[1728396693901,3.2078,2437.9,2437.8,0.41034]
[1728396694108,3.2078,2437.9,2437.7,0.41035]
[1728396694412,3.2078,2437.9,2437.8,0.41034]
[1728396694909,7.3094,2437.9,2437.8,0.41034]
[1728396696007,7.3094,2437.9,2437.4,1.02602]
[1728396696208,3.2078,2437.9,2437.8,0.41034]
[1728396696715,7.3094,2437.9,2437.3,1.02608]
[1728396696911,3.61814,2437.9,2437.7,0.41035]
[1728396697208,3.61814,2437.9,2437.2,0.8009]
[1728396697209,0.4104,2437.5,2437.4,0.41041]
[1728396697511,4.23381,2437.5,2437.2,0.41044]
[1728396697713,0.41043,2437.3,2436.8,1.02627]
[1728396697910,0.41042,2437.4,2437.2,0.41043]
[1728396698307,3.2078,2437.5,2437.0,1.02619]
[1728396698614,3.2078,2437.8,2437.7,0.41036]
[1728396699315,7.72055,2437.8,2437.6,0.4243]
[1728396699514,3.2078,2437.8,2437.7,0.41036]
[1728396702016,3.2078,2438.1,2437.6,0.4243]
[1728396702217,3.2078,2438.1,2438.0,0.41031]
[1728396702918,7.71969,2438.1,2437.6,1.45023]
[1728396703110,3.6181,2438.1,2437.6,1.45024]
[1728396703306,3.2078,2438.1,2438.0,0.41031]
[1728396704316,8.0416,2438.1,2437.6,0.4243]
[1728396704510,0.41028,2438.3,2438.1,0.41029]
[1728396704714,3.2078,2438.8,2437.8,3.2078]
[1728396705015,3.2078,2438.5,2437.8,4.23366]
[1728396705218,3.61803,2438.5,2438.3,0.41025]
[1728396705412,48.35799,2438.8,2438.6,0.4102]
[1728396705616,0.41021,2438.6,2438.5,0.41022]
[1728396705817,7.1478,2438.8,2438.5,0.41022]
[1728396706020,4.51101,2438.7,2438.5,0.41022]
[1728396706318,4.1008,2438.7,2438.5,0.41022]
[1728396706619,4.1008,2438.6,2438.5,0.41022]
[1728396706814,0.4102,2438.7,2438.5,0.41021]
[1728396707015,0.41021,2438.6,2438.5,0.41022]
[1728396707215,0.41021,2438.7,2438.5,0.41021]
[1728396707418,0.41021,2438.7,2438.2,1.02569]
[1728396707620,0.41021,2438.7,2438.6,0.41021]
[1728396707828,0.41021,2438.6,2438.5,0.41022]
[1728396708120,1.02549,2438.7,2437.7,1.02588]
[1728396708417,3.2078,2438.2,2438.1,0.41029]
[1728396708619,0.41026,2438.4,2438.2,0.41027]
[1728396708820,0.41026,2438.4,2437.9,1.02582]
[1728396709118,3.2078,2438.2,2438.1,0.41029]
[1728396709318,3.61808,2438.2,2438.1,0.41029]
[1728396709518,7.3094,2438.2,2438.1,0.41029]
[1728396710622,3.2078,2438.2,2438.1,0.41029]
[1728396710823,7.3094,2438.2,2438.1,0.41029]
[1728396713621,3.61799,2438.8,2438.3,1.02564]
[1728396713822,3.2078,2438.8,2438.7,0.41019]
[1728396714023,3.2078,2438.8,2438.4,0.4153]
[1728396714222,3.2078,2438.5,2438.4,0.41023]
[1728396714623,7.3086,2438.5,2438.4,0.41023]
[1728396714926,4.1008,2438.5,2438.4,0.41023]
[1728396716226,3.2078,2438.8,2438.7,0.41019]
[1728396716526,0.41019,2438.7,2438.6,0.4102]
[1728396716928,3.61799,2438.8,2438.4,0.41024]
[1728396717127,3.61799,2438.8,2438.6,0.4102]
[1728396717428,3.2078,2438.8,2438.7,0.41019]
[1728396717826,7.3086,2438.8,2438.7,0.41019]
[1728396720123,3.2078,2438.8,2438.7,0.41019]
[1728396720318,3.61798,2438.8,2438.7,0.41019]
[1728396720522,17.2486,2438.8,2438.2,0.409]
[1728396720821,1.02562,2438.4,2438.0,0.4153]
[1728396721016,3.2078,2438.2,2438.1,0.41028]
[1728396722433,3.2078,2438.6,2438.5,0.41023]
[1728396722618,45.76535,2439.1,2438.5,0.41023]
[1728396722619,3.2078,2438.9,2438.5,0.41023]
[1728396722821,3.2078,2438.9,2438.8,0.41017]
[1728396723230,0.41018,2438.8,2438.7,0.41019]
[1728396723430,0.41023,2438.5,2438.4,0.41024]
[1728396723622,0.41025,2438.4,2438.3,0.41026]
[1728396724432,4.1008,2438.4,2438.3,0.41026]
[1728396725130,0.41023,2438.5,2438.3,0.41026]
[1728396725327,3.2078,2438.6,2438.3,0.41025]
[1728396725637,1.02562,2438.4,2438.1,0.41028]
[1728396725819,0.41028,2438.2,2438.1,0.41028]
[1728396726227,3.61807,2438.3,2438.1,0.41029]
[1728396726427,3.61807,2438.3,2438.2,0.41028]
[1728396726624,7.3094,2438.3,2438.2,0.41028]
[1728396726829,3.618,2438.7,2438.6,0.41021]
[1728396727132,3.618,2438.7,2438.5,0.41021]
[1728396727326,3.2078,2438.7,2438.6,0.41021]
[1728396727525,3.2078,2438.7,2438.2,0.41028]
[1728396727727,0.41022,2438.6,2438.5,0.41022]
[1728396728132,3.2078,2438.7,2438.2,0.41028]
[1728396728329,3.61801,2438.7,2438.6,0.41021]
[1728396728530,7.3086,2438.7,2438.3,1.02566]
[1728396728731,3.2078,2438.7,2438.3,1.02566]
[1728396729032,3.618,2438.7,2438.6,0.41021]
[1728396729234,1.43574,2438.6,2438.3,0.41025]
[1728396729430,3.2078,2438.4,2438.3,0.41025]
[1728396729630,4.23326,2438.8,2438.5,0.41023]
[1728396729832,4.23326,2438.8,2438.1,1.02574]
[1728396730024,3.2078,2438.5,2438.1,1.02574]
[1728396730333,3.2078,2438.5,2438.4,0.41024]
[1728396730826,3.2078,2438.8,2438.1,1.02574]
[1728396731026,3.2078,2438.8,2438.7,0.41019]
[1728396732229,0.4101,2439.3,2439.2,0.4101]
[1728396732534,0.41009,2439.3,2439.2,0.4101]
[1728396732734,0.41009,2439.3,2438.9,1.0254]
[1728396733034,3.61789,2439.4,2439.2,0.41011]
[1728396733931,3.2078,2439.4,2439.3,0.41009]
[1728396734132,3.2078,2439.4,2438.8,1.02544]
[1728396734437,0.41017,2438.9,2438.8,0.41017]
[1728396734630,0.41015,2439.0,2438.9,0.41015]
[1728396734836,0.41015,2439.0,2438.7,0.3919]
[1728396734837,0.41014,2439.0,2438.8,0.41016]
[1728396735038,3.2078,2439.1,2438.7,0.3919]
[1728396735241,0.41017,2438.9,2438.7,0.80208]
[1728396735436,0.41015,2439.0,2438.9,0.41015]
[1728396735743,0.41015,2439.0,2438.7,0.3919]
[1728396735943,0.41015,2439.0,2438.8,0.41018]
[1728396736236,0.41015,2439.0,2438.9,0.41016]
[1728396736438,0.41016,2439.0,2438.8,0.41016]
[1728396736644,0.41016,2439.0,2438.7,0.3919]
[1728396736943,0.41016,2439.0,2438.9,0.41016]
[1728396737129,0.41016,2439.0,2438.7,0.3919]
[1728396737130,3.61793,2439.1,2439.0,0.41014]
[1728396737331,0.41014,2439.0,2438.7,0.3919]
[1728396737539,0.41014,2439.0,2438.9,0.41015]
[1728396737739,3.2078,2439.1,2438.7,0.3919]
[1728396737943,3.2078,2439.4,2438.7,0.3919]
[1728396738142,0.41009,2439.3,2439.2,0.41009]
[1728396738438,3.61788,2439.4,2439.0,1.02535]
[1728396738635,3.61788,2439.4,2439.3,0.41009]
[1728396738836,7.71708,2439.4,2439.3,0.41009]
[1728396740040,3.61788,2439.4,2439.3,0.41009]
[1728396740240,3.2078,2439.4,2439.3,0.41009]
[1728396740642,0.41004,2439.7,2439.6,0.41003]
[1728396740841,3.61781,2439.8,2439.7,0.41002]
[1728396741041,4.23283,2439.8,2439.6,0.41004]
[1728396741341,0.41004,2439.7,2439.6,0.41004]
[1728396741941,3.61782,2439.8,2439.7,0.41002]
[1728396742140,3.2078,2439.8,2439.7,0.41002]
[1728396742337,3.61776,2440.1,2440.0,0.40996]
[1728396742536,0.40999,2440.0,2439.9,0.40998]
[1728396742841,3.2078,2440.1,2440.0,0.40997]
[1728396743341,41.82484,2440.3,2440.0,0.40997]
[1728396743342,3.2078,2440.5,2440.1,0.40996]
[1728396743539,4.23255,2440.5,2440.2,0.40994]
[1728396743740,0.40994,2440.2,2440.1,0.3913]
[1728396743936,3.61774,2440.2,2440.1,0.3913]
[1728396744139,3.61774,2440.2,2440.1,0.80126]
[1728396744435,3.2078,2440.2,2440.1,0.80126]
[1728396744637,0.40992,2440.4,2440.1,0.3913]
[1728396745041,0.40992,2440.4,2440.3,0.40992]
[1728396746039,3.2078,2440.5,2440.4,0.40991]
[1728396746040,3.6177,2440.5,2440.4,0.40991]
[1728396746433,3.2078,2440.5,2440.4,0.40991]
[1728396746942,3.61765,2440.8,2440.7,0.40986]
[1728396747342,3.61765,2440.8,2439.8,0.41]
[1728396747343,0.40999,2440.0,2439.8,0.41]
[1728396747542,3.2078,2439.9,2439.2,1.02528]
[1728396747748,3.2078,2439.6,2439.4,0.41007]
[1728396747938,3.2078,2439.6,2439.1,1.2203]
[1728396748144,3.2078,2439.9,2439.7,0.41002]
[1728396748341,3.2078,2439.9,2439.6,0.41004]
[1728396748642,3.2078,2439.9,2439.2,1.02528]
[1728396748842,3.2078,2439.9,2439.7,0.41001]
[1728396749244,3.2078,2439.9,2439.2,1.02528]
[1728396749447,3.2078,2439.9,2439.6,0.41003]
[1728396749947,0.40998,2440.0,2439.7,0.41002]
[1728396750133,0.40997,2440.1,2439.7,0.41002]
[1728396750336,0.40997,2440.1,2439.8,0.4182]
[1728396750537,0.40998,2440.0,2439.8,0.4182]
[1728396750934,0.40996,2440.1,2439.8,0.8282]
[1728396751352,44.0078,2440.2,2439.8,0.4182]
[1728396751645,3.61779,2439.9,2439.8,0.4182]
[1728396751844,7.1478,2439.9,2439.1,0.4204]
[1728396752041,0.41011,2439.2,2439.1,0.4204]
[1728396752451,0.41015,2439.0,2438.8,0.4182]
[1728396752949,0.41013,2439.1,2438.9,0.41016]
[1728396753139,3.2078,2439.3,2438.9,0.41016]
[1728396753550,3.2078,2439.3,2438.8,0.4182]
[1728396753748,0.41014,2439.1,2438.9,0.41016]
[1728396753948,3.2078,2439.0,2438.8,0.4182]
[1728396754145,3.2078,2439.0,2438.8,0.82836]
[1728396754345,3.2078,2439.0,2438.8,0.4182]
[1728396754545,0.41016,2438.9,2438.8,0.4182]
[1728396755052,3.2078,2439.0,2438.8,0.4182]
[1728396755445,0.41016,2438.9,2438.8,0.4182]
[1728396756952,0.4102,2438.7,2438.5,0.41022]
[1728396757151,3.618,2438.7,2438.5,0.41022]
[1728396757651,3.2078,2438.7,2438.5,0.41022]
[1728396757852,3.2078,2438.7,2438.4,0.4022]
[1728396758048,3.2078,2438.7,2438.6,0.41021]
[1728396758256,0.41016,2438.9,2438.7,0.41018]
[1728396758447,3.2078,2439.1,2438.4,0.4022]
[1728396758647,17.062,2441.6,2438.5,0.41022]
[1728396758648,0.41021,2438.7,2438.5,0.41022]
[1728396759049,3.2078,2438.8,2438.5,0.41022]
[1728396759252,3.61799,2438.8,2438.6,0.41021]
[1728396759454,0.41019,2438.7,2438.5,0.41022]
[1728396759655,0.41019,2438.7,2438.4,0.4022]
[1728396759856,3.2078,2438.8,2438.4,0.4022]
[1728396760156,0.4102,2438.7,2438.5,0.41022]
[1728396760652,3.2078,2438.8,2438.4,0.4022]
[1728396760857,0.41021,2438.6,2438.4,0.81243]
[1728396761057,3.2078,2438.8,2438.4,0.4022]
[1728396761358,0.4102,2438.7,2438.5,0.41021]
[1728396761560,0.4102,2438.7,2438.5,0.41022]
[1728396762054,3.2078,2438.8,2438.4,0.4022]
[1728396762653,0.4102,2438.7,2438.5,0.41022]
[1728396763261,3.2078,2438.8,2438.4,0.4022]
[1728396763463,0.41023,2438.5,2438.4,0.4022]
[1728396763762,3.2078,2439.1,2438.7,0.41019]
[1728396763963,0.41017,2438.9,2438.7,0.41019]
[1728396764356,0.41017,2438.9,2438.7,0.41018]
[1728396764663,3.2078,2439.1,2438.5,1.02557]
[1728396764852,3.2078,2439.1,2438.9,0.41015]
[1728396765056,0.41015,2439.0,2438.8,0.41016]
[1728396765256,0.41015,2439.0,2438.5,1.02557]
[1728396765558,3.2078,2439.1,2438.9,0.41016]
[1728396765858,3.61794,2439.1,2438.9,0.41016]
[1728396766059,3.61794,2439.1,2438.5,1.02557]
[1728396766060,0.41015,2439.0,2438.8,0.41016]
[1728396766561,3.61794,2439.1,2438.9,0.41016]
[1728396766758,0.41014,2439.0,2438.9,0.41016]
[1728396766962,3.61793,2439.1,2438.9,0.41016]
[1728396767154,3.61793,2439.1,2438.5,1.02557]
[1728396767355,3.61793,2439.1,2438.9,0.41015]
[1728396767962,3.2078,2439.1,2438.9,0.41015]
[1728396768158,0.41014,2439.0,2438.9,0.41016]
[1728396768960,3.2078,2439.1,2438.5,0.44593208]
[1728396769164,1.02537,2439.0,2438.7,0.41019]
[1728396769360,0.41018,2438.8,2438.7,0.41019]
[1728396769767,3.2078,2438.8,2438.4,1.42781]
[1728396769956,3.61798,2438.8,2438.4,1.42781]
[1728396770362,3.2078,2439.1,2438.5,1.02556]
[1728396770560,3.61794,2439.1,2438.9,0.41015]
[1728396770861,0.41014,2439.1,2438.9,0.41015]
[1728396771062,1.02526,2439.3,2438.9,0.41015]
[1728396771263,0.41014,2439.0,2438.9,0.41015]
[1728396771461,3.61793,2439.1,2439.0,0.41014]
[1728396771763,0.41016,2439.0,2438.8,0.41017]
[1728396772268,3.2078,2439.1,2438.8,0.41017]
[1728396772470,0.41016,2438.9,2438.8,0.41017]
[1728396772669,0.41018,2438.8,2438.4,0.84007225]
[1728396772968,0.41018,2438.8,2438.7,0.41019]
[1728396773167,0.41018,2438.8,2438.4,1.86568225]
[1728396773168,3.2078,2439.1,2438.4,0.84007225]
[1728396773365,3.61794,2439.1,2438.9,0.41015]
[1728396773567,3.2078,2439.1,2439.0,0.41014]
[1728396773867,4.23301,2439.4,2438.8,1.02544]
[1728396774066,0.41011,2439.2,2439.1,0.41012]
[1728396774267,3.2078,2439.4,2438.9,0.4005]
[1728396774456,4.23287,2439.7,2439.4,0.41007]
[1728396774662,0.41006,2439.5,2439.4,0.41007]
[1728396775063,4.23287,2439.7,2439.0,0.4275]
[1728396775266,0.4101,2439.3,2439.0,0.4275]
[1728396775566,0.4101,2439.3,2439.1,0.41011]
[1728396775766,3.2078,2439.4,2439.0,0.4275]
[1728396776159,3.2078,2439.4,2439.3,0.41009]
[1728396776365,3.61782,2439.8,2439.6,0.41003]
[1728396776564,3.2078,2439.8,2439.3,1.02523]
[1728396776764,3.2078,2440.1,2439.5,1.02515]
[1728396776968,0.40997,2440.1,2439.9,0.40998]
[1728396777164,0.40997,2440.1,2439.9,0.40999]
[1728396777366,0.40997,2440.1,2439.6,1.855]
[1728396777762,0.40997,2440.0,2439.9,0.40999]
[1728396777962,0.40997,2440.1,2439.9,0.40999]
[1728396778473,0.40994,2440.2,2439.9,0.40999]
[1728396778665,1.02484,2440.3,2440.0,0.40997]
[1728396778864,0.40995,2440.2,2440.0,0.40996]
[1728396779571,1.02483,2440.3,2439.7,0.4145]
[1728396779771,0.40995,2440.2,2440.0,0.40997]
[1728396779970,3.2078,2440.4,2439.7,4.3545]
[1728396780176,3.2078,2440.4,2440.3,0.40992]
[1728396780364,3.2078,2440.7,2440.4,0.4099]
[1728396780567,3.2078,2440.7,2440.0,3.94]
[1728396780775,0.40991,2440.4,2439.7,7.5623]
[1728396781067,0.40992,2440.3,2440.1,0.40995]
[1728396781272,4.23246,2440.7,2439.8,1.02501]
[1728396781468,0.40993,2440.3,2440.1,0.40995]
[1728396781664,3.2078,2440.4,2440.1,0.40995]
[1728396781870,3.61772,2440.4,2440.2,0.40993]
[1728396782067,3.2078,2440.4,2440.3,0.40992]
[1728396782269,3.61765,2440.8,2440.6,0.40986]
[1728396782775,3.2078,2440.8,2440.7,0.40986]
[1728396783075,3.2078,2441.1,2440.4,1.43377]
[1728396783268,0.40988,2440.6,2440.4,0.81889]
[1728396783472,3.2078,2440.8,2440.5,0.40989]
[1728396783473,0.40987,2440.7,2440.5,0.40989]
[1728396783666,3.61766,2440.8,2440.5,0.40989]
[1728396783871,0.40986,2440.7,2440.5,0.40989]
[1728396784072,3.2078,2440.8,2440.7,0.40986]
[1728396784473,0.40981,2441.0,2440.8,0.40983]
[1728396784770,3.2078,2441.1,2440.4,1.88141756]
[1728396785177,3.2078,2441.1,2440.4,0.85664756]
[1728396785477,3.61765,2440.8,2440.6,0.40986]
[1728396785973,3.2078,2440.8,2440.4,0.409]
[1728396786175,0.40992,2440.4,2440.2,0.40994]
[1728396786371,0.40993,2440.3,2440.0,0.45534402]
[1728396786571,0.40993,2440.3,2439.8,0.3982]
[1728396786572,0.40993,2440.3,2440.1,0.40995]
[1728396787073,0.40991,2440.4,2440.2,0.40993]
[1728396787372,3.2078,2440.5,2440.3,0.40992]
[1728396787575,1.02461,2440.8,2440.0,1.02493]
[1728396787873,0.40986,2440.7,2440.5,0.40989]
[1728396788476,0.40987,2440.7,2440.5,0.40989]
[1728396788877,1.02461,2440.8,2440.0,1.02493]
[1728396789076,0.4099,2440.5,2440.3,0.40992]
[1728396789372,0.40993,2440.3,2439.9,1.02498]
[1728396789581,0.40993,2440.3,2440.1,0.40995]
[1728396789782,3.2078,2440.3,2440.1,0.40995]
[1728396789975,3.61773,2440.3,2440.1,0.40995]
[1728396790173,0.40995,2440.2,2440.0,0.40997]
[1728396790370,3.2078,2440.3,2439.8,1.23091774]
[1728396790877,3.61773,2440.3,2440.2,0.40994]
[1728396791076,3.2078,2440.3,2439.9,1.02499]
[1728396791278,3.61773,2440.3,2440.2,0.40994]
[1728396791680,44.0078,2440.6,2439.9,1.02499]
[1728396791978,0.4099,2440.5,2440.3,0.40991]
[1728396792383,3.2078,2440.6,2440.5,0.40989]
[1728396792582,3.61769,2440.6,2440.2,1.02483]
[1728396792881,3.61769,2440.6,2440.5,0.40989]
[1728396793082,3.2078,2440.6,2440.5,0.40989]
[1728396793482,3.61767,2440.6,2440.5,0.40989]
[1728396794179,3.2078,2440.6,2440.5,0.40989]
[1728396794578,3.2078,2440.6,2440.5,4.50749]
[1728396794883,3.2078,2440.6,2440.4,0.7876]
[1728396795084,3.61768,2440.6,2440.4,0.3864]
[1728396795280,3.61768,2440.6,2440.5,0.40989]
[1728396795681,3.61768,2440.6,2440.4,0.3864]
[1728396796375,3.61769,2440.6,2440.4,0.7963]
[1728396796579,3.2078,2440.6,2440.5,0.40989]
[1728396796781,3.61767,2440.6,2440.5,0.40989]
[1728396797085,3.2078,2440.6,2440.5,0.40989]
[1728396797783,3.2078,2440.9,2440.4,0.3864]
[1728396797989,0.40984,2440.8,2440.7,0.40985]
[1728396798888,3.61764,2440.9,2440.7,0.40985]
[1728396799190,0.40984,2440.8,2440.7,0.40985]
[1728396799487,3.2078,2440.9,2440.8,0.40984]
[1728396799693,3.61762,2440.9,2440.8,0.40984]
[1728396799890,0.40985,2440.8,2440.7,0.40985]
[1728396800283,3.61763,2440.9,2440.8,0.40984]
[1728396800789,3.2078,2440.9,2440.5,0.4171]
[1728396800988,4.23228,2441.2,2440.6,1.02467]
[1728396801287,3.61758,2441.2,2441.1,0.40979]
[1728396801483,3.2078,2441.2,2440.8,1.02459]
[1728396801689,3.61758,2441.2,2441.1,0.40979]
[1728396802389,3.61759,2441.2,2441.0,0.40979]
[1728396802583,3.61759,2441.2,2441.1,0.40979]
[1728396802783,3.61759,2441.2,2440.8,1.02459]
[1728396802988,3.2078,2441.2,2441.1,0.40979]
[1728396803189,7.3046,2441.2,2440.7,1.02465]
[1728396803388,3.2078,2441.2,2440.7,1.02465]
[1728396803686,3.61758,2441.2,2441.1,0.40979]
[1728396803885,0.40997,2440.1,2439.7,3.61782]
[1728396804083,3.2078,2439.8,2439.4,0.4001]
[1728396804583,3.61782,2439.8,2439.4,0.4001]
[1728396804779,3.2078,2439.5,2439.4,0.4001]